bitfinex/quotes_SOLUSD_20220228
["timestamp","ask_amount","ask_price","bid_price","bid_amount"]
[1646039911659,111.7,90.119,90.047,45.4044728]
[1646039911860,1.4641283,90.116,90.047,45.4044728]
[1646039915564,22.9043,90.118,90.047,45.4044728]
[1646039915565,1.84407023,90.108,90.047,45.4044728]
[1646039915765,111.7,90.099,90.047,45.4044728]
[1646039915964,1.45270228,90.096,90.047,45.4044728]
[1646039918467,111.7,90.089,90.029,112.6]
[1646039918667,1.61158304,90.078,89.995,22.5142]
[1646039918868,1.61158304,90.078,89.996,6.0]
[1646039919266,1.61158304,90.078,89.997,70.95631205]
[1646039919467,111.7,90.076,89.998,6.0]
[1646039919670,1.44989981,90.075,89.998,26.31429206]
[1646039920070,1.44989981,90.075,89.998,6.0]
[1646039920971,24.5318,90.077,90.0,16.6673]
[1646039921172,15.99,90.08,90.001,6.0]
[1646039921772,1.76537782,90.079,89.998,6.0]
[1646039922372,22.8504,90.079,89.998,6.0]
[1646039922574,1.73530119,90.078,89.998,6.0]
[1646039923575,1.73530119,90.078,90.0,16.6664]
[1646039923775,1.73530119,90.078,90.001,6.0]
[1646039924176,1.8539434,90.078,90.001,6.0]
[1646039924375,1.8539434,90.078,89.998,6.0]
[1646039925076,22.8504,90.079,89.998,8.93562314]
[1646039925476,22.8504,90.079,90.01,16.6655]
[1646039925676,22.8504,90.079,90.011,6.0]
[1646039926277,22.8504,90.079,89.999,6.0]
[1646039927080,1.46521852,90.078,90.0,16.6665]
[1646039927283,1.46521852,90.078,90.001,6.0]
[1646039927479,22.8504,90.079,89.998,6.0]
[1646039927682,15.99,90.08,89.999,67.03]
[1646039927983,24.8364,90.089,90.0,61.5448]
[1646039928182,22.7952,90.088,90.01,16.666]
[1646039928401,22.7952,90.088,90.011,6.0]
[1646039928981,22.7952,90.088,90.001,6.0]
[1646039929886,22.7952,90.088,90.002,67.03]
[1646039930084,22.7952,90.088,90.02,16.6639]
[1646039930284,22.7952,90.088,90.021,6.0]
[1646039930885,22.7952,90.088,90.011,28.6477]
[1646039931486,22.7952,90.088,90.03,16.6617]
[1646039931686,22.7952,90.088,90.031,44.02707567]
[1646039933289,18.35569559,90.12,90.031,44.02707567]
[1646039933491,28.0737087,90.118,90.04,16.6611]
[1646039933788,1.50431636,90.117,90.04,16.6611]
[1646039934390,1.67298366,90.116,90.04,16.6611]
[1646039934789,1.17298366,90.116,90.04,16.6611]
[1646039935191,1.53262888,90.114,90.04,16.6611]
[1646039935393,15.99,90.11,90.04,16.6611]
[1646039939418,1.42439834,90.108,90.032,24.8412]
[1646039939618,22.5548,90.107,90.032,24.8412]
[1646039944821,111.7,90.106,90.032,24.8412]
[1646039945123,1.65835618,90.105,90.032,24.8412]
[1646039947624,1.56199316,90.103,90.032,24.8412]
[1646039947825,15.99,90.09,90.032,24.8412]
[1646039948026,24.2218,90.089,90.011,6.0]
[1646039948223,24.2218,90.089,90.012,24.3316]
[1646039948428,113.20292263,90.088,90.013,6.0]
[1646039948632,1.66748859,90.087,90.013,6.0]
[1646039951129,1.66748859,90.087,90.012,24.3316]
[1646039952131,1.66748859,90.087,90.013,59.02842459]
[1646039956732,1.66748859,90.087,90.02,16.6645]
[1646039956933,1.86687421,90.102,90.02,16.6645]
[1646039957132,15.99,90.1,90.02,16.6645]
[1646039957333,31.60807773,90.136,90.025,67.03]
[1646039957532,25.06822238,90.135,90.027,181.05788696]
[1646039957733,1.67395705,90.134,90.029,67.03]
[1646039957933,15.99,90.13,90.031,67.03]
[1646039958134,1.53506126,90.129,90.033,67.03]
[1646039958334,1.53506126,90.129,90.034,75.7325094]
[1646039958536,1.53506126,90.129,90.05,16.6577]
[1646039958735,1.53506126,90.129,90.051,81.42729168]
[1646039960534,1.53506126,90.129,90.06,16.6574]
[1646039962335,1.39283172,90.128,90.051,24.5072]
[1646039962736,1.39283172,90.128,90.04,16.6598]
[1646039962935,111.7,90.127,90.032,23.7325]
[1646039963236,1.44822138,90.126,90.033,49.17652884]
[1646039963441,113.44099826,90.125,90.033,49.17652884]
[1646039963639,111.7,90.109,90.033,49.17652884]
[1646039963836,1.6224332,90.108,90.033,49.17652884]
[1646039967340,1.6224332,90.108,90.04,16.6612]
[1646039970441,24.0408,90.109,90.04,16.6612]
[1646039970841,24.0408,90.109,90.05,16.6593]
[1646039973442,1.4876748,90.128,90.05,16.6593]
[1646039973644,15.99,90.13,90.06,16.6566]
[1646039973847,1.67399759,90.135,90.06,16.6566]
[1646039973848,1.67399759,90.135,90.061,44.60267555]
[1646039976249,24.0973,90.138,90.061,44.60267555]
[1646039976553,24.0973,90.138,90.07,16.6557]
[1646039976748,24.0973,90.138,90.071,6.0]
[1646039977172,24.0973,90.138,90.072,4.439]
[1646039977354,24.0973,90.138,90.073,6.0]
[1646039977755,24.0973,90.138,90.074,4.439]
[1646039977957,24.0973,90.138,90.075,6.0]
[1646039978156,24.0973,90.138,90.076,4.439]
[1646039978356,1.53896789,90.169,90.077,6.0]
[1646039978555,24.3776,90.168,90.081,67.03]
[1646039978760,24.3776,90.168,90.083,67.03]
[1646039978955,24.3776,90.168,90.078,52.96370684]
[1646039978956,24.3776,90.168,90.085,67.03]
[1646039979158,24.3776,90.168,90.086,10.438]
[1646039979355,24.3776,90.168,90.086,13.18478921]
[1646039979557,24.3776,90.168,90.086,42.17559605]
[1646039979756,24.3776,90.168,90.087,2.74678921]
[1646039979958,24.3776,90.168,90.089,46.79051469]
[1646039980158,24.3776,90.168,90.09,77.468]
[1646039980360,24.4561,90.187,90.101,67.03]
[1646039980557,24.8084,90.186,90.105,67.03]
[1646039980759,24.8084,90.186,90.107,67.03]
[1646039980958,24.8084,90.186,90.109,67.03]
[1646039981159,24.8084,90.186,90.111,67.03]
[1646039981361,24.8084,90.186,90.108,5.72223762]
[1646039981362,24.8084,90.186,90.113,67.03]
[1646039981557,24.8084,90.186,90.12,16.646]
[1646039981761,24.8084,90.186,90.122,46.87030416]
[1646039981958,24.8084,90.186,90.123,4.436]
[1646039982158,24.8084,90.186,90.123,10.436]
[1646039982358,1.64104863,90.204,90.124,67.03]
[1646039982558,23.738,90.213,90.125,77.466]
[1646039982959,23.738,90.213,90.125,80.21278921]
[1646039983563,23.738,90.213,90.14,16.6431]
[1646039983759,23.738,90.213,90.141,6.0]
[1646039984263,1.5808127,90.212,90.141,6.0]
[1646039984460,1.5808127,90.212,90.14,16.6431]
[1646039984691,1.5808127,90.212,90.121,4.434]
[1646039984889,1.5808127,90.212,90.12,16.6457]
[1646039985092,111.7,90.209,90.12,16.6457]
[1646039985289,1.84759161,90.208,90.12,16.6457]
[1646039985490,111.7,90.199,90.12,16.6457]
[1646039985691,111.7,90.197,90.12,16.6457]
[1646039985892,1.78513602,90.196,90.12,16.6457]
[1646039986290,1.78513602,90.196,90.106,24.9203]
[1646039986492,1.78513602,90.196,90.102,22.5508]
[1646039986693,1.78513602,90.196,90.107,49.85424973]
[1646039987493,16.6496,90.19,90.107,49.85424973]
[1646039987692,25.66705839,90.189,90.107,49.85424973]
[1646039987893,1.68672115,90.188,90.107,49.85424973]
[1646039988494,1.46813949,90.186,90.107,49.85424973]
[1646039988696,1.46813949,90.186,90.11,16.6483]
[1646039996200,24.6828,90.187,90.11,16.6483]
[1646039996201,24.6828,90.187,90.111,67.03]
[1646039996399,24.6828,90.187,90.13,16.6435]
[1646039996599,24.6828,90.187,90.131,4.436]
[1646039996899,24.6828,90.187,90.132,6.0]
[1646039997099,1.371422,90.219,90.133,4.436]
[1646039997299,1.60379808,90.218,90.133,4.436]
[1646039997999,1.60379808,90.218,90.133,71.466]
[1646039998199,1.64044602,90.232,90.14,16.642]
[1646039998400,15.99,90.23,90.142,57.74026094]
[1646039998600,15.99,90.23,90.143,6.0]
[1646039998800,1.61498881,90.229,90.143,6.0]
[1646039999000,45.6628,90.228,90.143,6.0]
[1646039999202,1.85689928,90.227,90.143,10.434]
[1646039999602,1.85689928,90.227,90.15,16.64]
[1646040000004,45.6628,90.228,90.15,16.64]
[1646040000206,1.72595656,90.227,90.151,6.0]
[1646040000603,45.6628,90.228,90.16,16.6392]
[1646040001403,1.6634314,90.227,90.16,16.6392]
[1646040002607,45.6628,90.228,90.16,16.6392]
[1646040002805,45.6628,90.228,90.161,6.0]
[1646040003005,45.6628,90.228,90.18,16.6347]
[1646040003304,45.6628,90.228,90.181,52.1716489]
[1646040003706,22.8974,90.228,90.181,52.1716489]
[1646040003905,15.99,90.25,90.181,52.1716489]
[1646040004106,1.86686258,90.249,90.181,52.1716489]
[1646040004716,1.44764761,90.247,90.181,52.1716489]
[1646040005006,23.8103,90.248,90.181,52.1716489]
[1646040005311,23.8103,90.248,90.182,6.0]
[1646040006206,23.8103,90.248,90.181,52.1716489]
[1646040007007,1.50654716,90.247,90.181,52.1716489]
[1646040010417,1.50654716,90.247,90.145,67.03]
[1646040010617,22.5876,90.246,90.154,6.0]
[1646040010815,1.63221556,90.245,90.154,6.0]
[1646040011032,1.74608465,90.244,90.154,6.0]
[1646040011232,1.43607158,90.239,90.154,6.0]
[1646040011431,1.43607158,90.239,90.155,45.6484351]
[1646040011631,1.43607158,90.239,90.156,6.0]
[1646040014031,1.84874334,90.238,90.156,6.0]
[1646040014732,1.45810766,90.236,90.156,6.0]
[1646040017236,1.45810766,90.236,90.157,4.434]
[1646040017434,23.3093,90.237,90.159,67.03]
[1646040017635,23.3093,90.237,90.16,4.434]
[1646040017838,23.03,90.261,90.162,67.03]
[1646040018041,23.03,90.261,90.165,2.58647594]
[1646040018237,23.03,90.261,90.167,67.03]
[1646040018439,24.7531,90.276,90.169,67.03]
[1646040018637,23.03,90.275,90.177,67.03]
[1646040018839,23.03,90.275,90.18,2.3379262]
[1646040019039,23.03,90.275,90.184,67.03]
[1646040019240,15.99,90.29,90.186,178.73]
[1646040019440,15.99,90.29,90.188,178.73]
[1646040019640,1.44233882,90.305,90.19,178.73]
[1646040019842,1.44233882,90.305,90.193,2.40569728]
[1646040020040,1.44233882,90.305,90.195,178.73]
[1646040020243,1.44233882,90.305,90.203,67.03]
[1646040020443,47.1437,90.315,90.217,67.03]
[1646040020645,47.1437,90.315,90.219,67.03]
[1646040020841,47.1437,90.315,90.221,67.03]
[1646040021046,47.1437,90.315,90.227,67.03]
[1646040021242,1.82362915,90.314,90.228,10.431]
[1646040021447,1.82362915,90.314,90.228,6.0]
[1646040022045,1.82362915,90.314,90.229,67.03]
[1646040022447,1.82362915,90.314,90.23,6.0]
[1646040022645,15.99,90.31,90.23,6.0]
[1646040023247,15.99,90.31,90.22,69.77678921]
[1646040023444,15.99,90.31,90.222,67.03]
[1646040023644,15.99,90.31,90.224,67.03]
[1646040023843,15.99,90.31,90.223,6.0]
[1646040023844,15.99,90.31,90.226,67.03]
[1646040024044,15.99,90.31,90.228,67.03]
[1646040024245,15.99,90.31,90.23,67.03]
[1646040024443,17.46675211,90.31,90.231,6.0]
[1646040024645,1.5256991,90.309,90.218,46.97480881]
[1646040024843,1.5256991,90.309,90.22,6.0]
[1646040025444,1.5256991,90.309,90.197,4.431]
[1646040025644,1.5256991,90.309,90.196,24.8964]
[1646040026244,1.5256991,90.309,90.197,4.432]
[1646040026443,1.5256991,90.309,90.198,53.80096395]
[1646040026648,1.5256991,90.309,90.18,51.6534]
[1646040026649,20.98392591,90.308,90.199,4.431]
[1646040026944,199.82,90.3,90.173,2.74678921]
[1646040027146,1.65469415,90.289,90.174,4.432]
[1646040027344,1.82586033,90.287,90.174,4.432]
[1646040027545,1.82586033,90.287,90.175,60.71420744]
[1646040027947,199.82,90.28,90.175,60.71420744]
[1646040028146,1.47183172,90.269,90.175,60.71420744]
[1646040028547,23.6063,90.268,90.175,60.71420744]
[1646040028750,1.73228194,90.267,90.175,60.71420744]
[1646040029147,1.73228194,90.267,90.176,6.0]
[1646040031851,23.6063,90.268,90.176,6.0]
[1646040032450,23.6063,90.268,90.178,2.69410358]
[1646040032651,23.6063,90.268,90.181,2.46232549]
[1646040032851,23.6063,90.268,90.184,2.67755748]
[1646040033050,23.6063,90.268,90.185,73.03]
[1646040034753,23.6063,90.268,90.187,67.03]
[1646040034955,23.6063,90.268,90.189,67.03]
[1646040035156,23.6063,90.268,90.191,67.03]
[1646040035355,23.6063,90.268,90.193,67.03]
[1646040035555,23.6063,90.268,90.195,67.03]
[1646040035755,23.6063,90.268,90.197,67.03]
[1646040035957,23.6063,90.268,90.199,67.03]
[1646040036155,23.6063,90.268,90.2,6.0]
[1646040036355,23.6063,90.268,90.177,8.49582486]
[1646040037156,23.6063,90.268,90.178,67.03]
[1646040037356,23.6063,90.268,90.18,67.03]
[1646040037556,23.6063,90.268,90.182,67.03]
[1646040037856,23.6063,90.268,90.185,2.9160608]
[1646040038056,23.6063,90.268,90.183,6.0]
[1646040038057,23.6063,90.268,90.188,2.75484872]
[1646040038258,23.6063,90.268,90.191,2.98298828]
[1646040038461,23.6063,90.268,90.193,67.03]
[1646040038659,23.6063,90.268,90.195,67.03]
[1646040038858,23.6063,90.268,90.196,6.0]
[1646040039759,23.6063,90.268,90.182,67.03]
[1646040039960,23.6063,90.268,90.184,67.03]
[1646040040160,23.6063,90.268,90.185,73.03]
[1646040040362,23.6063,90.268,90.186,6.0]
[1646040040963,23.6063,90.268,90.187,6.0]
[1646040041162,23.6063,90.268,90.186,6.0]
[1646040041361,23.6063,90.268,90.182,67.03]
[1646040041561,23.6063,90.268,90.184,67.03]
[1646040041765,23.6063,90.268,90.185,73.03]
[1646040041962,23.6063,90.268,90.179,24.445]
[1646040042163,1.35065933,90.267,90.179,24.445]
[1646040042762,1.72109086,90.266,90.179,24.445]
[1646040043162,25.66713257,90.265,90.144,2.71711011]
[1646040043364,1.80646753,90.264,90.164,6.0]
[1646040043567,15.99,90.25,90.164,6.0]
[1646040043763,49.76713098,90.249,90.164,6.0]
[1646040043962,1.57073121,90.248,90.165,42.77336343]
[1646040044168,1.57073121,90.248,90.166,6.0]
[1646040044366,48.3671,90.249,90.166,6.0]
[1646040046765,48.3671,90.249,90.167,67.03]
[1646040046965,48.3671,90.249,90.169,67.03]
[1646040047165,1.7865547,90.248,90.17,6.0]
[1646040047366,1.7865547,90.248,90.168,6.0]
[1646040047765,1.7865547,90.248,90.166,6.0]
[1646040048366,48.3671,90.249,90.168,2.60711142]
[1646040048569,48.3671,90.249,90.17,69.60640785]
[1646040048766,48.3671,90.249,90.172,67.03]
[1646040048966,48.3671,90.249,90.174,67.03]
[1646040049167,48.3671,90.249,90.175,77.464]
[1646040049366,48.3671,90.249,90.176,6.0]
[1646040049566,48.3671,90.249,90.177,67.03]
[1646040049769,48.3671,90.249,90.178,6.0]
[1646040050466,48.3671,90.249,90.172,6.0]
[1646040050667,48.3671,90.249,90.167,6.0]
[1646040054575,48.3671,90.249,90.168,4.434]
[1646040054775,48.3671,90.249,90.169,6.0]
[1646040054974,48.3671,90.249,90.17,4.434]
[1646040055175,48.3671,90.249,90.171,6.0]
[1646040055777,48.3671,90.249,90.168,6.0]
[1646040055983,48.3671,90.249,90.169,4.434]
[1646040056280,48.3671,90.249,90.17,6.0]
[1646040056476,48.3671,90.249,90.171,4.434]
[1646040056677,48.3671,90.249,90.172,6.0]
[1646040057277,48.3671,90.249,90.167,6.0]
[1646040057479,48.3671,90.249,90.168,4.434]
[1646040057680,48.3671,90.249,90.175,111.7]
[1646040057880,1.72411968,90.286,90.188,67.03]
[1646040058181,46.417,90.285,90.198,67.03]
[1646040058379,15.99,90.28,90.2,67.03]
[1646040058581,15.99,90.28,90.202,67.03]
[1646040058784,15.99,90.28,90.204,67.03]
[1646040058981,15.99,90.28,90.205,73.03]
[1646040060194,46.417,90.285,90.207,69.5402456]
[1646040060395,15.99,90.3,90.213,67.03]
[1646040060595,15.99,90.3,90.216,2.29376388]
[1646040060794,24.8664,90.304,90.219,2.54542601]
[1646040060994,24.8664,90.304,90.221,67.03]
[1646040061194,24.8664,90.304,90.223,67.03]
[1646040061399,24.8664,90.304,90.228,57.70761087]
[1646040061595,26.57545532,90.304,90.228,57.70761087]
[1646040062398,24.8664,90.304,90.229,73.03]
[1646040067503,24.8664,90.304,90.237,67.03]
[1646040067803,24.8664,90.304,90.239,67.03]
[1646040068003,24.8664,90.304,90.241,67.03]
[1646040068205,24.8664,90.304,90.242,6.0]
[1646040068606,24.8664,90.304,90.24,30.57471865]
[1646040069307,24.8664,90.304,90.225,67.03]
[1646040069507,24.8664,90.304,90.229,6.0]
[1646040072512,24.8664,90.304,90.23,67.03]
[1646040072713,24.8664,90.304,90.229,6.0]
[1646040072714,24.8664,90.304,90.232,67.03]
[1646040072913,24.8664,90.304,90.231,6.0]
[1646040072914,24.8664,90.304,90.234,67.03]
[1646040073113,24.8664,90.304,90.235,73.03]
[1646040073313,24.8664,90.304,90.235,67.03]
[1646040073513,24.8664,90.304,90.236,6.0]
[1646040074318,24.8664,90.304,90.229,6.0]
[1646040074916,24.8664,90.304,90.23,67.03]
[1646040075121,24.8664,90.304,90.232,67.03]
[1646040075317,24.8664,90.304,90.234,67.03]
[1646040075516,24.8664,90.304,90.235,73.03]
[1646040075718,24.8664,90.304,90.235,67.03]
[1646040075920,24.8664,90.304,90.236,6.0]
[1646040076319,24.8664,90.304,90.237,67.03]
[1646040076518,24.8664,90.304,90.237,86.58574219]
[1646040077821,24.8664,90.304,90.238,6.0]
[1646040078444,24.8664,90.304,90.231,67.03]
[1646040078620,24.8664,90.304,90.233,67.03]
[1646040078821,24.8664,90.304,90.235,67.03]
[1646040079021,24.8664,90.304,90.236,6.0]
[1646040080220,24.8664,90.304,90.231,67.03]
[1646040080423,24.8664,90.304,90.233,67.03]
[1646040080621,24.8664,90.304,90.235,67.03]
[1646040080821,24.8664,90.304,90.236,6.0]
[1646040081522,3.1208406,90.257,90.236,6.0]
[1646040081721,3.1208406,90.257,90.231,67.03]
[1646040081923,3.1208406,90.257,90.233,67.03]
[1646040082125,3.1208406,90.257,90.235,67.03]
[1646040082323,3.1208406,90.257,90.236,6.0]
[1646040083424,3.1208406,90.257,90.229,6.0]
[1646040083627,3.1208406,90.257,90.228,57.70761087]
[1646040084026,3.1208406,90.257,90.229,6.0]
[1646040085128,1.51974034,90.303,90.229,6.0]
[1646040088954,1.51974034,90.303,90.23,67.03]
[1646040089150,24.8664,90.304,90.232,67.03]
[1646040089352,24.8664,90.304,90.234,67.03]
[1646040089554,24.8664,90.304,90.235,73.03]
[1646040089754,24.8664,90.304,90.235,67.03]
[1646040089952,24.8664,90.304,90.236,6.0]
[1646040091155,24.8664,90.304,90.231,67.03]
[1646040091354,24.8664,90.304,90.233,67.03]
[1646040091556,24.8664,90.304,90.235,67.03]
[1646040091756,24.8664,90.304,90.236,6.0]
[1646040093054,24.8664,90.304,90.231,67.03]
[1646040093254,24.8664,90.304,90.23,30.3532]
[1646040093255,24.8664,90.304,90.233,67.03]
[1646040093454,24.8664,90.304,90.235,67.03]
[1646040093653,24.8664,90.304,90.236,6.0]
[1646040094861,24.8664,90.304,90.237,67.03]
[1646040095055,24.8664,90.304,90.239,67.03]
[1646040095257,24.8664,90.304,90.241,67.03]
[1646040095456,24.8664,90.304,90.245,67.03]
[1646040095656,24.8664,90.304,90.246,6.0]
[1646040097356,24.8664,90.304,90.245,67.03]
[1646040097757,24.8664,90.304,90.245,178.73]
[1646040098157,24.8664,90.304,90.244,48.41378343]
[1646040098857,24.8664,90.304,90.245,6.0]
[1646040101773,24.8664,90.304,90.244,48.41378343]
[1646040101973,15.99,90.3,90.244,48.41378343]
[1646040102173,1.76011514,90.299,90.244,48.41378343]
[1646040104871,1.5374324,90.299,90.244,48.41378343]
[1646040106174,15.99,90.3,90.244,48.41378343]
[1646040106575,24.8664,90.304,90.244,48.41378343]
[1646040108477,24.8664,90.304,90.245,67.03]
[1646040108676,24.8664,90.304,90.246,6.0]
[1646040109476,24.8664,90.304,90.247,67.03]
[1646040109677,24.8664,90.304,90.249,67.03]
[1646040109880,24.8664,90.304,90.251,67.03]
[1646040110079,24.8664,90.304,90.253,67.03]
[1646040110283,24.8664,90.304,90.255,67.03]
[1646040110480,24.8664,90.304,90.256,6.0]
[1646040111480,24.8664,90.304,90.248,67.03]
[1646040111682,24.8664,90.304,90.25,67.03]
[1646040111884,24.8664,90.304,90.252,67.03]
[1646040112218,24.8664,90.304,90.254,67.03]
[1646040112382,24.8664,90.304,90.255,73.03]
[1646040113183,1.65661012,90.329,90.255,184.73]
[1646040113383,48.42050159,90.432,90.256,5.09002372]
[1646040113384,23.8846,90.336,90.256,5.09002372]
[1646040113585,23.8846,90.336,90.258,221.47981609]
[1646040113783,23.8846,90.336,90.26,194.72]
[1646040113982,23.8846,90.336,90.262,178.73]
[1646040114184,23.8489,90.347,90.261,8.60984364]
[1646040114185,23.8489,90.347,90.264,178.73]
[1646040114384,23.8489,90.347,90.263,8.71819001]
[1646040114385,23.8489,90.347,90.266,178.73]
[1646040114584,23.8489,90.347,90.271,178.73]
[1646040114786,23.8489,90.347,90.273,225.39305043]
[1646040114987,23.8489,90.347,90.275,178.73]
[1646040115188,23.8489,90.347,90.285,178.73]
[1646040115390,23.8489,90.347,90.287,67.03]
[1646040115588,1.74054758,90.385,90.289,67.03]
[1646040115788,1.74054758,90.385,90.288,66.58551787]
[1646040115789,23.969,90.384,90.291,67.03]
[1646040115987,1.40271664,90.383,90.293,67.03]
[1646040116187,1.40271664,90.383,90.295,67.03]
[1646040116386,1.40271664,90.383,90.297,67.03]
[1646040116590,1.40271664,90.383,90.298,6.0]
[1646040117188,23.969,90.384,90.299,69.77678921]
[1646040117387,23.969,90.384,90.301,67.03]
[1646040117588,23.969,90.384,90.303,67.03]
[1646040117786,1.39828907,90.383,90.305,67.03]
[1646040117989,1.39828907,90.383,90.306,6.0]
[1646040118186,1.39828907,90.383,90.305,67.03]
[1646040118486,1.39828907,90.383,90.302,58.98358009]
[1646040118687,15.99,90.38,90.302,58.98358009]
[1646040118888,1.63939947,90.379,90.302,58.98358009]
[1646040119710,111.7,90.379,90.302,58.98358009]
[1646040119889,1.7186539,90.378,90.302,58.98358009]
[1646040120994,111.7,90.377,90.302,58.98358009]
[1646040121191,1.56064722,90.376,90.302,58.98358009]
[1646040121394,111.7,90.374,90.302,58.98358009]
[1646040121591,111.7,90.369,90.302,58.98358009]
[1646040121791,1.36740473,90.368,90.302,58.98358009]
[1646040123693,1.36740473,90.368,90.303,67.03]
[1646040123894,1.36740473,90.368,90.302,58.98358009]
[1646040123895,24.3376,90.375,90.305,67.03]
[1646040124095,24.3376,90.375,90.306,6.0]
[1646040124294,24.3376,90.375,90.304,6.0]
[1646040124592,24.3376,90.375,90.305,67.03]
[1646040124797,24.3376,90.375,90.306,6.0]
[1646040125193,24.3376,90.375,90.305,67.03]
[1646040125595,24.3376,90.375,90.302,75.49478009]
[1646040125799,24.3376,90.375,90.303,73.03]
[1646040127218,24.3376,90.375,90.302,75.49478009]
[1646040127219,1.47683216,90.374,90.302,75.49478009]
[1646040127805,1.47683216,90.374,90.303,6.0]
[1646040128912,1.47683216,90.374,90.302,75.49478009]
[1646040129712,1.47683216,90.374,90.303,67.03]
[1646040129914,24.3376,90.375,90.305,67.03]
[1646040130114,24.3376,90.375,90.306,6.0]
[1646040130314,1.86644787,90.383,90.302,58.98358009]
[1646040130514,1.49674592,90.379,90.302,58.98358009]
[1646040130714,1.42168716,90.377,90.302,58.98358009]
[1646040131315,113.12168716,90.377,90.302,58.98358009]
[1646040131613,1.80678325,90.376,90.302,58.98358009]
[1646040131813,111.7,90.375,90.302,58.98358009]
[1646040132014,1.47115881,90.374,90.302,58.98358009]
[1646040132213,15.99,90.36,90.302,58.98358009]
[1646040132412,24.48895411,90.359,90.302,58.98358009]
[1646040132613,22.8643,90.359,90.302,58.98358009]
[1646040136729,1.68987953,90.358,90.302,58.98358009]
[1646040138029,22.8643,90.359,90.302,58.98358009]
[1646040141236,1.43986205,90.358,90.302,58.98358009]
[1646040142134,22.8643,90.359,90.302,58.98358009]
[1646040145837,22.8643,90.359,90.303,67.03]
[1646040146039,15.99,90.39,90.305,67.03]
[1646040146339,16.6204,90.46,90.302,58.98358009]
[1646040146340,24.5724,90.383,90.308,2.92392079]
[1646040146538,24.5724,90.383,90.31,67.03]
[1646040146739,24.5724,90.383,90.312,67.03]
[1646040147737,24.5724,90.383,90.306,24.0955]
[1646040147738,24.5724,90.383,90.307,67.03]
[1646040147938,24.5724,90.383,90.308,6.0]
[1646040148138,24.5724,90.383,90.306,24.0955]
[1646040148738,24.5724,90.383,90.307,67.03]
[1646040149438,24.5724,90.383,90.308,6.0]
[1646040150640,24.5724,90.383,90.309,67.03]
[1646040150842,24.5724,90.383,90.311,67.03]
[1646040151442,24.5724,90.383,90.313,67.03]
[1646040151844,24.5724,90.383,90.314,4.426]
[1646040153246,24.5724,90.383,90.313,67.03]
[1646040153545,24.5724,90.383,90.316,58.73733012]
[1646040155851,24.5724,90.383,90.317,6.0]
[1646040159257,24.5724,90.383,90.316,58.73733012]
[1646040167271,24.5724,90.383,90.317,69.77678921]
[1646040167473,24.5724,90.383,90.318,4.426]
[1646040167872,24.5724,90.383,90.317,2.74678921]
[1646040172185,24.5724,90.383,90.316,58.73733012]
[1646040172386,1.35110066,90.381,90.316,58.73733012]
[1646040172582,113.4470419,90.379,90.316,58.73733012]
[1646040172785,111.7,90.379,90.316,58.73733012]
[1646040172983,111.7,90.377,90.316,58.73733012]
[1646040173282,1.84685992,90.376,90.316,58.73733012]
[1646040174085,1.84685992,90.376,90.266,28.225]
[1646040174285,25.72432583,90.376,90.263,11.56895489]
[1646040174484,25.72432583,90.376,90.246,40.2937]
[1646040174485,111.7,90.369,90.246,23.799]
[1646040174695,23.87746591,90.376,90.211,23.4919]